bitfinex/quotes_SOLUSD_20260217
["timestamp","ask_amount","ask_price","bid_price","bid_amount"]
[1771331615842,46.84176552,85.394,85.33,0.2]
[1771331615843,0.45694793,85.349,85.33,0.2]
[1771331616659,4.31666566,85.34,85.33,0.2]
[1771331616961,0.45694793,85.345,85.33,0.2]
[1771331618166,0.45694793,85.339,85.33,0.2]
[1771331618369,0.45694793,85.339,85.32,12.40442562]
[1771331618370,0.45694793,85.339,85.32,0.68389191]
[1771331618546,0.45694793,85.339,85.32,0.2]
[1771331618749,0.45694793,85.329,85.31,0.2]
[1771331618950,0.45694793,85.319,85.3,0.2]
[1771331619670,0.45694793,85.319,85.3,11.92327773]
[1771331620865,29.29321334,85.344,85.3,11.92327773]
[1771331620866,0.45694793,85.309,85.3,0.2]
[1771331621373,4.77361359,85.32,85.301,0.48389191]
[1771331621675,0.45694793,85.319,85.301,0.48389191]
[1771331622549,19.13694793,85.324,85.303,0.48389191]
[1771331622851,46.84678775,85.385,85.311,0.48389191]
[1771331622852,0.45694793,85.347,85.311,0.48389191]
[1771331623769,11.71701075,85.346,85.311,0.48389191]
[1771331623969,12.17395868,85.346,85.311,0.48389191]
[1771331624167,12.17508905,85.351,85.313,0.48389191]
[1771331624470,0.4586695,85.349,85.313,0.48389191]
[1771331624666,11.71554157,85.357,85.321,0.46772884]
[1771331624880,0.4586695,85.358,85.321,0.46772884]
[1771331625076,0.4586695,85.357,85.321,0.46772884]
[1771331625284,0.4586695,85.349,85.321,0.46772884]
[1771331625685,0.4586695,85.355,85.321,0.46772884]
[1771331627378,0.4586695,85.359,85.323,0.46772884]
[1771331628565,0.4586695,85.359,85.325,0.46772884]
[1771331629673,11.71536352,85.358,85.325,0.46772884]
[1771331629872,0.4586695,85.357,85.325,0.46772884]
[1771331630884,0.4586695,85.349,85.327,0.46772884]
[1771331632285,16.03176522,85.36,85.327,0.46772884]
[1771331632484,4.31666566,85.35,85.327,0.46772884]
[1771331632690,0.45019103,85.349,85.327,0.46772884]
[1771331633380,0.45019103,85.349,85.329,0.45972041]
[1771331634483,0.45019103,85.349,85.33,11.71920778]
[1771331634669,0.45019103,85.349,85.331,0.45972041]
[1771331637369,11.71673618,85.348,85.331,0.45972041]
[1771331637696,0.45019103,85.347,85.326,11.71969286]
[1771331638094,0.45019103,85.347,85.326,12.17941327]
[1771331638391,0.45019103,85.347,85.326,11.71969286]
[1771331638589,0.45019103,85.347,85.327,0.45972041]
[1771331639281,0.45019103,85.355,85.327,0.45972041]
[1771331640093,0.45019103,85.349,85.327,0.45972041]
[1771331640594,0.45019103,85.349,85.328,11.71948246]
[1771331640771,0.45019103,85.349,85.328,12.17920287]
[1771331640977,0.45019103,85.349,85.311,11.72181781]
[1771331641998,0.45019103,85.349,85.311,41.02636235]
[1771331643092,0.45019103,85.347,85.314,0.38339698]
[1771331643484,0.45019103,85.357,85.314,0.38339698]
[1771331643687,16.48201845,85.36,85.321,0.38339698]
[1771331643878,0.45019103,85.359,85.321,0.38339698]
[1771331646198,0.45019103,85.357,85.323,0.38339698]
[1771331647098,0.45019103,85.349,85.323,0.38339698]
[1771331648304,0.45019103,85.339,85.309,12.10541149]
[1771331648879,0.45019103,85.339,85.31,0.38339698]
[1771331655386,0.46518,85.329,85.307,11.72225842]
[1771331655700,0.46518,85.329,85.308,0.38339698]
[1771331655902,0.46518,85.335,85.308,0.38339698]
[1771331656899,0.46518,85.329,85.308,0.38339698]
[1771331657601,0.46518,85.319,85.3,0.2]
[1771331657799,0.46518,85.309,85.29,0.2]
[1771331659906,11.72223003,85.308,85.29,0.2]
[1771331660116,0.46518,85.307,85.29,0.2]
[1771331660300,0.46518,85.307,85.29,0.67313914]
[1771331661723,0.46518,85.307,85.29,0.2]
[1771331662015,11.72216304,85.309,85.29,0.2]
[1771331662318,0.46518,85.308,85.29,0.2]
[1771331662725,0.46518,85.308,85.27,24.10660455]
[1771331662726,0.46518,85.299,85.25,4.52660455]
[1771331662901,4.32660455,85.29,85.25,4.52660455]
[1771331664119,4.32660455,85.29,85.263,11.72836646]
[1771331664312,0.46518,85.289,85.263,11.72836646]
[1771331664620,0.46518,85.299,85.264,0.11025784]
[1771331666820,0.46518,85.297,85.264,0.11025784]
[1771331667923,4.32660455,85.29,85.264,0.11025784]
[1771331671727,4.79178455,85.3,85.264,0.11025784]
[1771331671927,0.46518,85.309,85.271,0.11025784]
[1771331673029,0.46518,85.299,85.271,0.11025784]
[1771331674334,18.66,85.317,85.271,0.11025784]
[1771331674335,0.46518,85.309,85.271,0.11025784]
[1771331674830,0.46518,85.299,85.271,0.11025784]
[1771331677742,47.96265255,85.317,85.28,4.32660455]
[1771331677743,18.66,85.317,85.28,4.32660455]
[1771331677918,0.46518,85.317,85.281,0.11025784]
[1771331678716,12.18536489,85.323,85.291,0.11025784]
[1771331679029,0.46518,85.322,85.292,0.11025784]
[1771331680423,11.72018489,85.323,85.287,19.6]
[1771331680424,0.46518,85.319,85.287,19.6]
[1771331680634,0.46518,85.309,85.289,0.11025784]
[1771331681165,0.46518,85.309,85.291,0.11025784]
[1771331681329,0.46518,85.322,85.291,0.11025784]
[1771331681525,121.78,85.343,85.288,11.72497889]
[1771331681526,12.18301454,85.34,85.289,0.11025784]
[1771331681730,0.46518,85.339,85.301,0.11025784]
[1771331682233,0.46518,85.339,85.311,0.11025784]
[1771331683531,0.46518,85.339,85.312,0.11025784]
[1771331683836,11.7167285,85.349,85.312,0.11025784]
[1771331683837,0.46518,85.348,85.312,0.11025784]
[1771331684037,0.46518,85.348,85.321,0.11025784]
[1771331684337,0.46518,85.36,85.331,0.11025784]
[1771331684516,0.46518,85.36,85.33,4.32660455]
[1771331684517,0.49114503,85.369,85.341,0.11025784]
[1771331685219,29.27797446,85.389,85.341,0.11025784]
[1771331685220,0.49114503,85.388,85.341,0.11025784]
[1771331685425,0.49114503,85.388,85.351,0.11025784]
[1771331685627,0.49114503,85.388,85.352,0.11025784]
[1771331685931,0.49114503,85.388,85.361,0.11025784]
[1771331687956,0.49114503,85.388,85.362,0.11025784]
[1771331695250,0.49114503,85.388,85.37,4.32660455]
[1771331697750,0.49114503,85.388,85.37,16.04026631]
[1771331698333,0.49114503,85.388,85.371,0.11025784]
[1771331698643,0.49114503,85.388,85.37,4.32660455]
[1771331699651,0.46671358,85.397,85.38,4.32660455]
[1771331699830,0.46671358,85.408,85.381,0.11025784]
[1771331700439,0.46671358,85.422,85.391,0.11025784]
[1771331700654,0.46671358,85.422,85.39,4.32660455]
[1771331701454,0.46671358,85.422,85.385,0.11025784]
[1771331702366,0.46671358,85.419,85.385,0.11025784]
[1771331702564,40.97353109,85.421,85.365,19.56]
[1771331702565,0.46671358,85.409,85.365,19.56]
[1771331702747,0.46671358,85.409,85.371,0.11025784]
[1771331703056,0.46671358,85.409,85.381,0.11025784]
[1771331704462,0.46671358,85.407,85.381,0.11025784]
[1771331707061,11.70877924,85.406,85.381,0.11025784]
[1771331707261,0.46671358,85.405,85.381,0.11025784]
[1771331710663,12.17576702,85.404,85.381,0.11025784]
[1771331712963,0.46671358,85.403,85.381,0.11025784]
[1771331714149,0.46671358,85.415,85.381,0.11025784]
[1771331714469,0.47879806,85.414,85.381,0.11025784]
[1771331714877,0.47879806,85.414,85.38,23.86660455]
[1771331714878,0.47879806,85.436,85.391,0.11025784]
[1771331715075,4.32660455,85.43,85.391,0.11025784]
[1771331715384,0.47879806,85.429,85.391,0.11025784]
[1771331715881,0.47879806,85.434,85.401,0.11025784]
[1771331716377,0.47879806,85.448,85.403,0.11025784]
[1771331717982,0.47879806,85.439,85.403,0.11025784]
[1771331719976,0.47879806,85.439,85.404,0.11025784]
[1771331721071,0.47879806,85.438,85.404,0.11025784]
[1771331723176,0.47879806,85.438,85.412,0.11025784]
[1771331724279,0.47879806,85.442,85.412,0.11025784]
[1771331725579,0.47879806,85.457,85.421,0.11025784]
[1771331725950,0.47879806,85.457,85.431,0.11025784]
[1771331726876,0.47879806,85.457,85.432,0.11025784]
[1771331727062,11.70116345,85.462,85.432,0.11025784]
[1771331727259,11.70028548,85.468,85.432,0.11025784]
[1771331727460,0.47879806,85.467,85.434,0.11025784]
[1771331729985,4.41266715,85.47,85.441,0.11025784]
[1771331729986,0.1,85.47,85.441,0.11025784]
[1771331730476,11.80006048,85.47,85.443,0.11025784]
[1771331730874,0.1,85.47,85.443,0.11025784]
[1771331731065,11.70014859,85.469,85.445,0.11025784]
[1771331731767,4.41266715,85.47,85.445,0.11025784]
[1771331731978,18.56,85.549,85.461,0.48749471]
[1771331732273,4.41266715,85.54,85.491,0.48749471]
[1771331732478,6.21236617,85.54,85.502,0.48749471]
[1771331732668,0.1,85.54,85.511,0.48749471]
[1771331732875,4.41266715,85.54,85.511,0.48749471]
[1771331733168,0.1,85.54,85.512,0.48749471]
[1771331733872,0.47879806,85.556,85.523,0.3890559]
[1771331735379,4.41266715,85.56,85.523,0.3890559]
[1771331735380,0.47879806,85.549,85.523,0.3890559]
[1771331736670,0.47879806,85.559,85.525,0.3890559]
[1771331737959,0.1,85.56,85.531,0.3890559]
[1771331738181,0.57879806,85.56,85.531,0.3890559]
[1771331738763,0.57879806,85.56,85.533,0.3890559]
[1771331738970,0.57879806,85.56,85.532,11.69153065]
[1771331738971,0.1,85.56,85.541,0.3890559]
[1771331739867,0.1,85.56,85.55,4.31266715]
[1771331740190,0.47879806,85.609,85.552,0.3890559]
[1771331740360,0.47879806,85.609,85.571,0.3890559]
[1771331740675,0.47879806,85.609,85.581,0.3890559]
[1771331740857,40.8744803,85.628,85.532,192.91025579]
[1771331740858,0.47879806,85.599,85.571,12.075258]
[1771331741058,0.47879806,85.599,85.572,0.3890559]
[1771331741558,0.47879806,85.599,85.539,19.54]
[1771331741559,0.47879806,85.589,85.551,12.07798998]
[1771331741776,0.47879806,85.569,85.551,11.68893408]
[1771331742260,0.47879806,85.569,85.536,11.69098391]
[1771331742678,0.47879806,85.569,85.536,40.91844369]
[1771331743176,0.47879806,85.559,85.531,11.69166734]
[1771331743977,0.47879806,85.559,85.532,0.3890559]
[1771331744169,4.31266715,85.55,85.532,0.3890559]
[1771331744793,0.47879806,85.559,85.532,0.3890559]
[1771331744986,4.31266715,85.55,85.532,0.3890559]
[1771331745871,4.31266715,85.55,85.44,6.85659443]
[1771331745872,0.48188518,85.57,85.534,0.3890559]
[1771331746071,4.31266715,85.56,85.534,0.3890559]
[1771331746785,0.48188518,85.569,85.534,0.3890559]
[1771331747086,4.31266715,85.56,85.535,11.69112059]
[1771331747271,4.31266715,85.56,85.536,0.3890559]
[1771331747481,4.31266715,85.57,85.536,0.3890559]
[1771331749096,4.31266715,85.57,85.541,0.3890559]
[1771331749467,4.31266715,85.57,85.54,4.31266715]
[1771331749468,4.31266715,85.58,85.542,0.3890559]
[1771331749673,0.48188518,85.599,85.542,0.3890559]
[1771331749885,0.48188518,85.599,85.537,99.37220148]
[1771331749886,0.48188518,85.647,85.56,4.31266715]
[1771331750186,4.31266715,85.59,85.563,0.3890559]
[1771331750394,0.48188518,85.589,85.551,0.3890559]
[1771331751178,0.48188518,85.589,85.552,40.91079109]
[1771331751372,0.48188518,85.589,85.553,0.3890559]
[1771331753391,0.48188518,85.589,85.555,0.3890559]
[1771331753607,0.48188518,85.589,85.529,46.76774073]
[1771331753608,0.48704625,85.579,85.548,0.3890559]
[1771331754573,0.48704625,85.559,85.532,0.3890559]
[1771331754774,0.48704625,85.559,85.525,0.3890559]
[1771331756595,0.48704625,85.559,85.527,0.3890559]
[1771331758987,0.48704625,85.559,85.529,0.3890559]
[1771331760478,0.48704625,85.559,85.531,0.3890559]
[1771331760876,0.48704625,85.569,85.531,0.3890559]
[1771331761204,0.48704625,85.559,85.533,0.3890559]
[1771331764384,0.48704625,85.559,85.527,0.3890559]
[1771331764603,29.21551119,85.571,85.521,11.69303445]
[1771331764604,0.48704625,85.549,85.521,11.69303445]
[1771331764903,0.48704625,85.529,85.511,11.69440188]
[1771331765098,4.31266715,85.56,85.512,0.49993475]
[1771331765404,4.31266715,85.56,85.521,0.49993475]
[1771331765600,4.31266715,85.57,85.531,0.49993475]
[1771331767095,18.4,85.588,85.533,0.49993475]
[1771331767096,0.48704625,85.559,85.533,0.49993475]
[1771331767291,0.48704625,85.559,85.532,11.69153065]
[1771331767507,18.38,85.577,85.532,11.69153065]
[1771331767688,4.31266715,85.57,85.533,0.49993475]
[1771331769115,4.31266715,85.57,85.534,11.69125727]
[1771331769411,4.31266715,85.56,85.534,11.69125727]
[1771331769710,0.48704625,85.559,85.534,11.69125727]
[1771331771713,0.48704625,85.559,85.529,0.49993475]
[1771331772012,0.48704625,85.557,85.529,0.49993475]
[1771331772408,4.31266715,85.55,85.529,0.49993475]
[1771331773394,0.48704625,85.549,85.528,11.69207744]
[1771331774218,0.48704625,85.549,85.522,11.69289773]
[1771331774400,0.48704625,85.549,85.522,12.16061255]
[1771331774807,4.31266715,85.54,85.522,12.16061255]
[1771331775210,0.49786575,85.539,85.522,11.69289773]
[1771331776621,0.49786575,85.539,85.516,11.69371813]
[1771331777003,0.49786575,85.539,85.516,12.16143295]
[1771331777620,0.49786575,85.539,85.516,11.69371813]
[1771331778822,0.49786575,85.539,85.516,0.46771482]
[1771331780113,0.49786575,85.545,85.518,0.46771482]
[1771331780827,4.30222572,85.55,85.518,0.46771482]
[1771331781414,206.0555999,87.394,85.517,40.92753487]
[1771331781415,0.49786575,85.565,85.521,0.46771482]
[1771331781727,0.49786575,85.559,85.521,0.46771482]
[1771331783726,0.49786575,85.559,85.531,0.46771482]
[1771331785031,0.49786575,85.559,85.533,0.46771482]
[1771331785623,0.49786575,85.557,85.533,0.46771482]
[1771331786546,0.49786575,85.557,85.527,0.46771482]
[1771331787033,0.49786575,85.557,85.523,11.69276101]
[1771331787034,12.18611672,85.556,85.529,0.46771482]
[1771331787421,11.68825097,85.556,85.529,0.46771482]
[1771331787627,0.49786575,85.555,85.529,0.46771482]
[1771331789815,0.49786575,85.555,85.531,0.46771482]
[1771331790716,0.49786575,85.561,85.531,0.46771482]
[1771331792915,35.16,85.694,85.532,286.44250103]
[1771331793120,6.21408037,85.679,85.631,0.46771482]
[1771331793326,16.823214,85.699,85.661,0.46771482]
[1771331793633,13.1,85.679,85.641,0.46771482]
[1771331793846,4.30222572,85.67,85.631,0.46771482]
[1771331794018,4.30222572,85.64,85.603,0.46771482]
[1771331794216,0.49786575,85.619,85.59,4.30222572]
[1771331794622,0.49786575,85.619,85.58,4.30222572]
[1771331795139,0.49786575,85.617,85.581,11.68483658]
[1771331795936,0.49786575,85.617,85.581,40.89692804]
[1771331796128,0.49786575,85.617,85.582,0.46771482]
[1771331797033,0.49786575,85.615,85.583,11.68456352]
[1771331797441,0.49786575,85.613,85.583,11.68456352]
[1771331797620,0.49786575,85.613,85.583,12.15227834]
[1771331797939,0.49786575,85.613,85.584,0.46771482]
[1771331798636,0.49786575,85.628,85.6,10.73648826]
[1771331798833,18.28,85.612,85.6,11.20420308]
[1771331799137,0.49786575,85.636,85.602,0.46771482]
[1771331799340,18.28,85.635,85.61,10.73648826]
[1771331799920,18.77786575,85.635,85.61,10.73648826]
[1771331800820,0.49786575,85.629,85.594,0.46771482]
[1771331801042,0.49786575,85.629,85.59,10.73648826]
[1771331801543,0.49786575,85.627,85.591,0.46771482]
[1771331802320,10.73648826,85.62,85.59,10.73648826]
[1771331802529,0.49786575,85.609,85.581,11.68483658]
[1771331802936,0.49786575,85.609,85.58,10.73648826]
[1771331803318,0.49786575,85.607,85.576,11.6855193]
[1771331803523,0.49786575,85.605,85.576,11.6855193]
[1771331803734,0.49786575,85.605,85.575,0.46771482]
[1771331804043,18.26,85.606,85.571,11.68618155]
[1771331804044,0.49786575,85.599,85.571,11.68618155]
[1771331805443,0.46232313,85.598,85.571,11.68618155]
[1771331805628,0.46232313,85.597,85.571,11.68618155]
[1771331805829,11.68046908,85.613,85.581,0.45512864]
[1771331806142,0.46232313,85.609,85.572,0.45512864]
[1771331806326,0.46232313,85.607,85.572,0.45512864]
[1771331806530,0.46232313,85.607,85.58,10.73648826]
[1771331806930,0.46232313,85.607,85.572,0.45512864]
[1771331807245,0.46232313,85.604,85.572,0.45512864]
[1771331807540,12.14412451,85.604,85.574,0.45512864]
[1771331807843,0.46232313,85.603,85.574,0.45512864]
[1771331808226,0.46232313,85.599,85.56,10.73648826]
[1771331808433,0.46232313,85.599,85.56,11.1916169]
[1771331808624,10.73648826,85.59,85.56,11.1916169]
[1771331808828,0.46232313,85.588,85.56,11.1916169]
[1771331809351,10.73648826,85.58,85.556,11.68818863]
[1771331809535,0.46232313,85.579,85.543,0.45512864]
[1771331809737,0.46232313,85.577,85.541,0.45512864]
[1771331810242,0.46232313,85.577,85.551,0.45512864]
[1771331812161,0.45154135,85.559,85.511,0.46466742]
[1771331812450,0.45154135,85.549,85.521,0.46466742]
[1771331812830,0.45154135,85.547,85.511,0.46466742]
[1771331813224,10.73648826,85.57,85.531,0.46466742]
[1771331813443,0.45154135,85.568,85.531,0.46466742]
[1771331813829,18.26,85.567,85.531,0.46466742]
[1771331814249,10.73648826,85.56,85.533,0.46466742]
[1771331815828,10.73648826,85.56,85.521,29.23240969]
[1771331815829,0.45154135,85.549,85.521,11.69303445]
[1771331816028,18.26,85.548,85.521,12.15770187]
[1771331816239,18.26,85.548,85.522,0.46466742]
[1771331816441,18.26,85.548,85.521,11.69303445]
[1771331816442,10.73648826,85.54,85.521,11.69303445]
[1771331816647,0.1,85.68,85.522,0.46466742]
[1771331816830,0.45154135,85.579,85.544,0.46466742]
[1771331817024,11.18802961,85.57,85.544,0.46466742]
[1771331817228,0.45154135,85.569,85.536,0.46466742]
[1771331817730,10.73648826,85.56,85.536,0.46466742]
[1771331817929,10.73648826,85.56,85.53,10.73648826]
[1771331817930,18.26,85.578,85.541,0.46466742]
[1771331818128,10.73648826,85.57,85.541,0.46466742]
[1771331818330,18.26,85.569,85.541,0.46466742]
[1771331819024,18.26,85.569,85.543,0.46466742]
[1771331820229,18.26,85.568,85.543,0.46466742]
[1771331821659,18.26,85.568,85.545,0.46466742]
[1771331822836,10.73648826,85.57,85.545,0.46466742]
[1771331823036,18.26,85.567,85.545,0.46466742]
[1771331823536,0.45154135,85.566,85.54,11.69037915]
[1771331823766,18.26,85.565,85.543,0.46466742]
[1771331824332,0.45154135,85.564,85.543,0.46466742]
[1771331824835,10.73648826,85.56,85.538,0.46466742]
[1771331825036,0.45154135,85.559,85.538,0.46466742]
[1771331825232,0.45154135,85.559,85.524,12.15729171]
[1771331825458,0.45154135,85.559,85.525,0.46466742]
[1771331826644,18.26,85.558,85.527,0.46466742]
[1771331826844,0.45154135,85.557,85.527,0.46466742]
[1771331827038,0.45154135,85.549,85.526,11.69235086]
[1771331829553,0.45154135,85.549,85.521,11.69303445]
[1771331829764,0.45154135,85.547,85.521,12.15770187]
[1771331830464,0.45154135,85.547,85.522,0.46466742]
[1771331831361,0.45154135,85.547,85.513,0.46466742]
[1771331831858,0.45154135,85.545,85.513,0.46466742]
[1771331832240,10.73648826,85.54,85.513,0.46466742]
[1771331832441,0.45154135,85.538,85.513,0.46466742]
[1771331832642,18.26,85.537,85.513,0.46466742]
[1771331832943,0.45154135,85.536,85.511,11.69440188]
[1771331833559,0.45154135,85.536,85.477,93.59180446]
[1771331833560,0.45154135,85.529,85.501,11.69576964]
[1771331833772,0.45154135,85.527,85.501,11.69576964]
[1771331834070,0.45154135,85.527,85.501,12.16043706]
[1771331834248,0.45154135,85.527,85.502,0.49925831]
[1771331834453,18.26,85.528,85.502,0.49925831]
[1771331834454,18.26,85.526,85.502,0.49925831]
[1771331834644,18.26,85.525,85.502,0.49925831]
[1771331834962,10.73648826,85.54,85.502,0.49925831]
[1771331835164,18.26,85.524,85.502,0.49925831]
[1771331835551,17.76,85.523,85.504,0.49925831]
[1771331836442,0.45112015,85.522,85.498,11.69606131]
[1771331836647,10.73648826,85.52,85.499,0.49925831]
[1771331836867,17.76,85.523,85.499,0.49925831]
[1771331837447,17.76,85.523,85.501,0.49925831]
[1771331837768,17.26,85.523,85.501,0.49925831]
[1771331838360,18.26,85.522,85.501,0.49925831]
[1771331839655,0.45112015,85.519,85.495,11.69646656]
[1771331839854,0.45112015,85.519,85.48,4.50418282]
[1771331839855,0.45112015,85.509,85.48,0.69925831]
[1771331840262,0.45112015,85.509,85.481,0.49925831]
[1771331840647,17.76,85.509,85.5,4.3056131]
[1771331840848,15.46,85.514,85.501,0.39329933]
[1771331841049,15.46,85.514,85.5,4.3056131]
[1771331841050,0.45112015,85.537,85.509,0.39329933]
[1771331841271,0.5,85.535,85.509,0.39329933]
[1771331841675,0.5,85.535,85.51,11.69453865]
[1771331841972,0.5,85.533,85.51,11.69453865]
[1771331842653,18.76,85.532,85.508,29.23680276]
[1771331842972,0.5,85.531,85.508,29.23680276]
[1771331843264,0.5,85.539,85.51,4.3056131]
[1771331843467,4.3056131,85.57,85.531,0.49925831]
[1771331843672,18.26,85.569,85.531,0.49925831]
[1771331843874,10.74999727,85.57,85.531,0.49925831]
[1771331844068,18.26,85.569,85.531,0.49925831]
[1771331844268,18.24,85.568,85.531,0.49925831]
[1771331844977,11.68674839,85.567,85.532,11.69153065]
[1771331845283,10.74999727,85.56,85.532,11.69153065]
[1771331845454,0.45112015,85.559,85.532,11.69153065]
[1771331846773,0.45112015,85.557,85.532,11.69153065]
[1771331847360,0.45112015,85.557,85.528,11.69207744]
[1771331847566,0.45112015,85.555,85.528,12.19133575]
[1771331847979,0.45112015,85.555,85.529,0.49925831]
[1771331848465,0.45112015,85.555,85.53,11.69180404]
[1771331850780,0.45112015,85.549,85.515,0.49925831]
[1771331851193,0.45112015,85.549,85.52,10.74999727]
[1771331851367,0.45112015,85.549,85.515,0.49925831]
[1771331852179,0.45112015,85.549,85.511,0.49925831]
[1771331853391,10.74999727,85.54,85.512,11.69426513]
[1771331853577,0.45112015,85.539,85.512,11.69426513]
[1771331853887,0.45112015,85.539,85.505,0.49925831]
[1771331854057,10.74999727,85.54,85.507,0.49925831]
[1771331854058,0.45112015,85.537,85.507,0.49925831]
[1771331854258,0.45112015,85.535,85.507,0.49925831]
[1771331855376,0.45112015,85.535,85.506,40.93280003]
[1771331855568,0.45112015,85.535,85.507,0.49925831]
[1771331856369,0.45112015,85.533,85.507,0.49925831]
[1771331857291,18.24,85.532,85.507,0.49925831]
[1771331857585,18.24,85.531,85.509,0.49925831]
[1771331857774,18.24,85.53,85.509,0.49925831]
[1771331858364,18.24,85.53,85.511,0.49925831]
[1771331858562,10.74999727,85.55,85.511,0.49925831]
[1771331858765,18.24,85.555,85.522,0.49925831]
[1771331858973,0.45112015,85.554,85.522,0.49925831]
[1771331859186,0.45112015,85.549,85.522,0.49925831]
[1771331859594,0.45112015,85.549,85.523,40.92466353]
[1771331861062,0.45112015,85.549,85.523,11.69276101]
[1771331861263,0.45112015,85.549,85.523,40.92466353]
[1771331862087,0.45112015,85.549,85.524,0.49925831]
[1771331863589,0.45112015,85.547,85.524,0.49925831]
[1771331864173,0.45112015,85.547,85.525,11.69248757]
[1771331865488,0.47536308,85.546,85.525,11.69248757]
[1771331866586,0.47536308,85.546,85.522,0.46752711]
[1771331867582,4.77649065,85.56,85.522,0.46752711]
[1771331867894,0.47536308,85.558,85.522,0.46752711]
[1771331868096,18.73536308,85.557,85.522,0.46752711]
[1771331868297,0.47536308,85.556,85.522,0.46752711]
[1771331869093,18.23536308,85.557,85.524,0.46752711]
[1771331869291,18.24,85.557,85.524,0.46752711]
[1771331871200,0.48333715,85.556,85.526,0.49481747]
[1771331873177,0.48333715,85.589,85.551,0.49481747]
[1771331873396,0.48333715,85.596,85.561,0.49481747]
[1771331873597,0.48333715,85.613,85.571,0.49481747]
[1771331873799,0.48333715,85.609,85.571,0.49481747]
[1771331874402,0.48333715,85.599,85.571,0.49481747]
[1771331875207,4.30112757,85.6,85.532,239.67637841]
[1771331875208,0.48333715,85.597,85.555,29.22089158]
[1771331875382,11.68251594,85.598,85.555,29.22089158]
[1771331875383,0.48333715,85.579,85.555,29.22089158]
[1771331875704,0.48333715,85.587,85.561,0.49481747]
[1771331875907,0.48333715,85.589,85.561,0.49481747]
[1771331876114,0.48333715,85.579,85.554,0.49481747]
[1771331877006,0.48333715,85.569,85.547,11.68948063]
[1771331877499,0.48333715,85.569,85.541,11.69030055]
[1771331877701,4.30112757,85.56,85.541,11.69030055]
[1771331877901,0.48333715,85.559,85.541,11.69030055]
[1771331880503,0.48333715,85.559,85.532,11.69145955]
[1771331881005,0.48333715,85.559,85.503,19.34]
[1771331881006,0.48333715,85.549,85.524,11.69251328]
[1771331881212,0.48333715,85.549,85.525,0.49481747]
[1771331882611,0.48333715,85.549,85.527,0.49481747]
[1771331883994,0.48333715,85.548,85.518,0.49481747]
[1771331884620,0.48333715,85.539,85.511,40.9304066]
[1771331885288,0.48333715,85.539,85.512,0.49481747]
[1771331886484,0.48333715,85.539,85.511,11.69440188]
[1771331887009,0.48333715,85.539,85.508,0.49481747]
[1771331889518,0.48333715,85.539,85.509,40.93136394]
[1771331889804,0.48333715,85.539,85.51,0.49481747]
[1771331890304,0.48333715,85.539,85.511,0.49481747]
[1771331891613,0.48333715,85.539,85.506,0.49481747]
[1771331893911,0.48333715,85.539,85.505,40.93327875]
[1771331893912,0.48333715,85.529,85.507,11.69494895]
[1771331894412,0.47946265,85.519,85.507,11.69494895]
[1771331894798,0.47946265,85.519,85.497,11.69631682]
[1771331895508,0.47946265,85.509,85.497,11.69631682]
[1771331896509,0.47946265,85.509,85.489,11.69740159]
[1771331896815,4.30112757,85.51,85.481,11.6985061]
[1771331896816,0.47946265,85.499,85.481,11.6985061]
[1771331897113,0.47946265,85.499,85.482,0.49053382]
[1771331897306,0.47946265,85.509,85.482,0.49053382]
[1771331898414,18.18,85.516,85.484,0.49053382]
[1771331898415,0.47946265,85.515,85.484,0.49053382]
[1771331898593,4.30112757,85.51,85.484,0.49053382]
[1771331899806,4.78059022,85.51,85.484,0.49053382]
[1771331900011,4.78493415,85.51,85.484,0.49053382]
[1771331900215,0.47946265,85.509,85.484,0.49053382]
[1771331900598,0.47946265,85.509,85.485,11.6979587]
[1771331900903,0.47946265,85.509,85.486,0.49053382]
[1771331901822,4.3054715,85.51,85.488,0.49053382]
[1771331902204,0.47946265,85.515,85.488,0.49053382]
[1771331904801,0.47946265,85.515,85.489,11.69741136]
[1771331905025,0.47946265,85.515,85.49,0.49053382]
[1771331906913,0.47946265,85.515,85.491,11.69713771]
[1771331908201,0.47946265,85.515,85.492,0.49053382]
[1771331908612,0.47946265,85.509,85.491,11.69713771]
[1771331909004,0.47946265,85.519,85.492,0.49053382]
[1771331911201,0.47946265,85.519,85.493,12.15974599]
[1771331911623,0.47946265,85.519,85.494,0.46288192]
[1771331912017,0.45268158,85.509,85.493,11.69686407]
[1771331912520,0.45268158,85.516,85.494,0.46288192]
[1771331914222,11.69254454,85.525,85.496,0.46288192]
[1771331914422,4.3054715,85.52,85.496,0.46288192]
[1771331914629,0.45268158,85.519,85.496,0.46288192]
[1771331915220,0.45268158,85.509,85.489,0.46288192]
[1771331915733,0.45268158,85.519,85.489,0.46288192]
[1771331917223,0.45268158,85.519,85.49,11.69727453]
[1771331917423,0.45268158,85.519,85.491,0.46288192]
[1771331918508,0.45268158,85.518,85.491,0.46288192]
[1771331919613,0.45268158,85.518,85.493,0.46288192]
[1771331922127,0.45268158,85.518,85.495,0.46288192]